bitfinex-derivatives/quotes_BTCF0:USTF0_20210108
["timestamp","ask_amount","ask_price","bid_price","bid_amount"]
[1610142474096,0.13632608,39463.0,39460.0,0.00027349]
[1610142477901,0.0212833,39482.0,39460.0,0.00027349]
[1610142478199,0.0212833,39482.0,39462.0,3.264]
[1610142478502,0.02127092,39486.0,39463.0,0.00027346]
[1610142479001,0.13632608,39493.0,39485.0,0.82877608]
[1610142479201,0.13632608,39493.0,39485.0,0.25427608]
[1610142479402,0.13632608,39493.0,39486.0,0.00027337]
[1610142479701,0.13632608,39493.0,39492.0,3.0134]
[1610142480101,0.13632608,39493.0,39492.0,3.01367334]
[1610142480802,0.13632608,39493.0,39492.0,3.14999942]
[1610142481909,0.13632608,39493.0,39492.0,3.01367334]
[1610142482209,0.13632608,39493.0,39485.0,0.11795]
[1610142482914,0.13632608,39486.0,39485.0,0.11795]
[1610142483316,0.13632608,39486.0,39485.0,0.01795]
[1610142483614,0.13632608,39486.0,39468.0,3.6452]
[1610142484211,0.13632608,39486.0,39469.0,0.00027351]
[1610142484414,0.13632608,39486.0,39469.0,0.08346351]
[1610142484912,0.00719045,39494.0,39469.0,0.08319]
[1610142485615,0.02145132,39494.0,39469.0,0.08319]
[1610142485812,0.00720758,39496.0,39469.0,0.08319]
[1610142486213,0.00721584,39498.0,39469.0,0.08319]
[1610142486613,0.00722665,39496.0,39469.0,0.08319]
[1610142486812,0.13632608,39482.0,39470.0,0.13632608]
[1610142487212,0.13632608,39482.0,39471.0,0.00027348]
[1610142487814,0.13632608,39482.0,39471.0,0.02922492]
[1610142488922,0.13632608,39482.0,39481.0,0.13632608]
[1610142489114,0.13632608,39482.0,39481.0,0.22377608]
[1610142489517,0.13632608,39482.0,39481.0,0.22404953]
[1610142490017,0.13632608,39482.0,39481.0,0.22404954]
[1610142490219,0.00730134,39490.0,39481.0,0.22404954]
[1610142490422,0.00730134,39490.0,39481.0,3.77974954]
[1610142490620,0.00730627,39491.0,39481.0,3.77974954]
[1610142490822,0.00730627,39491.0,39486.0,0.13632608]
[1610142491020,0.44410312,39492.0,39486.0,0.13632608]
[1610142491021,0.00730898,39492.0,39486.0,0.13632608]
[1610142491217,0.00730898,39492.0,39487.0,0.00027343]
[1610142491420,0.14363641,39493.0,39487.0,0.00027343]
[1610142491821,0.00730999,39492.0,39487.0,0.00027343]
[1610142492520,0.02177957,39491.0,39482.0,0.00027343]
[1610142492725,0.00730544,39489.0,39482.0,0.00027343]
[1610142492921,0.13632608,39483.0,39481.0,3.64315]
[1610142493122,0.13632608,39483.0,39481.0,0.08745]
[1610142493522,0.13632608,39483.0,39482.0,0.00027345]
[1610142494423,0.13632608,39483.0,39419.0,0.08342127]
[1610142494424,5.66589679,39483.0,39439.0,3.5449]
[1610142494624,6.6355657,39483.0,39439.0,3.5449]
[1610142494823,0.13632608,39461.0,39460.0,0.00027359]
[1610142495226,3.24112608,39461.0,39442.0,0.02924477]
[1610142495426,3.66744981,39461.0,39442.0,0.02924477]
[1610142495928,0.00722575,39457.0,39442.0,0.02924477]
[1610142496225,0.00722575,39457.0,39442.0,0.00027365]
[1610142496526,0.43949532,39458.0,39443.0,0.00027371]
[1610142496527,0.00722162,39454.0,39443.0,0.00027371]
[1610142496726,0.02148424,39451.0,39443.0,0.00027371]
[1610142496926,0.13632608,39444.0,39442.0,0.00027374]
[1610142497227,0.13632608,39444.0,39425.0,4.0461]
[1610142497426,0.13632608,39444.0,39443.0,0.00027374]
[1610142497627,0.13632608,39444.0,39440.0,0.0822]
[1610142498027,0.13632608,39444.0,39443.0,0.00027374]
[1610142498428,0.13632608,39444.0,39443.0,0.00054747]
[1610142502332,0.00722047,39458.0,39443.0,0.00054742]
[1610142502732,0.0215339,39461.0,39444.0,0.00027366]
[1610142502940,0.13632608,39453.0,39448.0,0.13632608]
[1610142503134,0.00722721,39464.0,39448.0,0.13632608]
[1610142503334,0.00722721,39464.0,39448.0,0.25803608]
[1610142503536,0.00723251,39467.0,39449.0,0.00027362]
[1610142503933,0.00723132,39470.0,39449.0,0.00027362]
[1610142504336,0.00722648,39469.0,39449.0,0.00027362]
[1610142504936,0.00722424,39468.0,39453.0,0.13632608]
[1610142505138,0.00721829,39465.0,39453.0,0.13632608]
[1610142505436,0.00721829,39465.0,39454.0,0.00027359]
[1610142505939,0.00721039,39463.0,39454.0,0.00027359]
[1610142506438,0.00721039,39463.0,39449.0,0.00027364]
[1610142506640,0.00721039,39463.0,39448.0,0.12171]
[1610142506840,0.13632608,39449.0,39448.0,0.12171]
[1610142507239,0.13632608,39449.0,39448.0,0.12198365]
[1610142507940,0.13632608,39449.0,39448.0,0.12171]
[1610142508442,0.13632608,39449.0,39443.0,0.00027374]
[1610142508848,0.13632608,39444.0,39443.0,0.00027374]
[1610142513450,0.02132084,39456.0,39443.0,0.00027374]
[1610142513952,0.0071709,39461.0,39443.0,0.00054739]
[1610142514250,0.00717787,39465.0,39444.0,0.00027365]
[1610142514752,0.00718319,39466.0,39444.0,0.00027365]
[1610142514952,0.13632608,39453.0,39444.0,0.00027365]
[1610142516153,0.13632608,39453.0,39446.0,4.1232]
[1610142516653,0.00720121,39468.0,39447.0,0.0002736]
[1610142516854,0.0072013,39469.0,39466.0,0.13632608]
[1610142517655,0.00720533,39471.0,39466.0,0.13632608]
[1610142517956,0.00720686,39472.0,39466.0,0.13632608]
[1610142518256,0.42407435,39474.0,39466.0,0.13632608]
[1610142518257,0.00719475,39474.0,39466.0,0.13632608]
[1610142518655,0.02143752,39478.0,39466.0,0.13632608]
[1610142518958,0.02143752,39478.0,39467.0,0.00027138]
[1610142519154,0.00719285,39478.0,39467.0,3.34677138]
[1610142519554,0.02142628,39478.0,39468.0,0.00027135]
[1610142519855,0.62070075,39484.0,39468.0,0.00027135]
[1610142519856,0.00719679,39484.0,39468.0,0.00027135]
[1610142520055,3.6061,39469.0,39467.0,0.00027139]
[1610142520455,3.61326855,39469.0,39443.0,0.00027374]
[1610142520755,0.00027139,39465.0,39443.0,0.00027374]
[1610142520957,0.0071373,39452.0,39444.0,0.00027154]
[1610142521159,0.1105073,39452.0,39443.0,0.00027374]
[1610142521357,3.429,39447.0,39443.0,0.00027374]
[1610142521956,0.0071261,39446.0,39443.0,0.00027374]
[1610142522456,0.41932182,39448.0,39443.0,0.00027374]
[1610142522457,0.00712763,39448.0,39443.0,0.00027374]
[1610142522660,0.00712669,39447.0,39443.0,0.00027374]
[1610142522858,0.13632608,39444.0,39443.0,0.00027374]
[1610142524158,0.13632608,39444.0,39426.0,0.07851]
[1610142524757,0.13632608,39444.0,39427.0,0.00027161]
[1610142524957,0.02125774,39445.0,39443.0,0.00317045]
[1610142525458,0.00712418,39445.0,39443.0,0.00317045]
[1610142525857,0.00713647,39444.0,39443.0,0.00317045]
[1610142526659,0.00714119,39446.0,39443.0,0.00317045]
[1610142526860,0.13632608,39444.0,39443.0,0.00317045]
[1610142529659,0.13632608,39444.0,39443.0,0.00344202]
[1610142530261,0.13632608,39444.0,39443.0,0.00317045]
[1610142530860,0.14346887,39444.0,39443.0,0.00162135]
[1610142531158,0.7315126,39444.0,39443.0,0.00162135]
[1610142531961,0.71736887,39444.0,39443.0,0.00162135]
[1610142532359,0.80829887,39444.0,39443.0,0.00162135]
[1610142532760,0.80115608,39444.0,39443.0,0.00162135]
[1610142536267,0.22725608,39444.0,39443.0,0.00162135]
[1610142536466,0.13632608,39444.0,39443.0,0.00162135]
[1610142537074,0.13632608,39444.0,39443.0,0.24299899]
[1610142537366,0.45618648,39444.0,39443.0,0.24299899]
[1610142548478,0.45618648,39444.0,39443.0,0.2712003]
[1610142553391,0.45618648,39444.0,39443.0,1.7712003]
[1610142555495,0.45618648,39444.0,39443.0,0.2712003]
[1610142556797,0.45618648,39444.0,39443.0,1.7712003]
[1610142557900,0.00728452,39476.0,39443.0,5.35080027]
[1610142558402,0.00728903,39479.0,39444.0,0.08265241]
[1610142558901,1.00041555,39486.0,39444.0,0.08265241]
[1610142558902,0.00730687,39488.0,39472.0,3.9805]
[1610142559200,0.02182965,39499.0,39487.0,0.70052608]
[1610142559400,0.02182965,39499.0,39487.0,0.21380608]
[1610142559602,0.00732386,39505.0,39487.0,0.21380608]
[1610142559804,0.00732386,39505.0,39488.0,0.00027124]
[1610142560002,0.63200587,39512.0,39494.0,4.0068]
[1610142560003,0.0073339,39510.0,39494.0,4.0068]
[1610142560302,0.0073339,39510.0,39501.0,3.0643]
[1610142560503,0.51783102,39514.0,39501.0,3.16796]
[1610142560504,0.00734065,39514.0,39501.0,3.16796]
[1610142560807,0.00734065,39514.0,39502.0,0.00027116]
[1610142561004,0.0218612,39519.0,39502.0,0.00027116]
[1610142561303,0.5179091,39522.0,39502.0,0.00027116]
[1610142561304,0.00734136,39522.0,39518.0,0.22703608]
[1610142561704,0.14366278,39529.0,39518.0,0.22703608]
[1610142562003,0.00733755,39528.0,39518.0,0.22703608]
[1610142562804,0.14365301,39529.0,39518.0,0.22703608]
[1610142563204,0.13632608,39529.0,39528.0,0.21880608]
[1610142564404,0.00732969,39538.0,39528.0,0.21880608]
[1610142564805,0.00732928,39543.0,39528.0,0.69560608]
[1610142565207,0.00733347,39546.0,39540.0,0.13632608]
[1610142565404,0.00733347,39546.0,39540.0,0.22492608]
[1610142565605,0.00732746,39551.0,39540.0,0.22492608]
[1610142566010,0.00733233,39553.0,39540.0,0.22492608]
[1610142566606,0.00733131,39554.0,39540.0,0.22492608]
[1610142567004,0.00733131,39554.0,39550.0,4.19124]
[1610142567206,0.00733412,39563.0,39553.0,0.13632608]
[1610142567610,0.00733013,39571.0,39553.0,0.13632608]
[1610142568008,0.00733918,39576.0,39575.0,3.9878]
[1610142568409,0.00735393,39583.0,39575.0,4.06493]
[1610142568909,0.00734527,39589.0,39575.0,4.06493]
[1610142569108,0.00734527,39589.0,39588.0,0.13632608]
[1610142569311,0.0073554,39595.0,39588.0,0.71077608]
[1610142569709,0.00734366,39599.0,39588.0,0.71077608]
[1610142570109,0.13632608,39603.0,39588.0,0.71077608]
[1610142570309,0.13632608,39603.0,39588.0,0.22697608]
[1610142570613,0.13632608,39603.0,39599.0,3.8561]
[1610142571115,0.13632608,39603.0,39602.0,0.13632608]
[1610142572011,0.13632608,39603.0,39599.0,3.85455646]
[1610142572211,0.13632608,39603.0,39588.0,0.09065]
[1610142573213,0.13632608,39592.0,39590.0,0.13632608]
[1610142573413,0.00731723,39611.0,39590.0,0.13632608]
[1610142573812,0.12252,39613.0,39590.0,0.13632608]
[1610142575013,0.12252,39613.0,39588.0,0.09065]
[1610142575213,0.13632608,39592.0,39591.0,0.13632608]
[1610142575713,0.12252,39613.0,39591.0,0.13632608]
[1610142575914,0.12252,39613.0,39602.0,3.0316]
[1610142577115,0.12252,39613.0,39604.0,0.13632608]
[1610142577316,0.00739388,39623.0,39604.0,0.13632608]
[1610142577615,0.43507928,39624.0,39602.0,3.0316]
[1610142577616,0.00770413,39622.0,39602.0,3.0316]
[1610142577816,0.00030886,39622.0,39602.0,3.0316]
[1610142578015,0.00030886,39622.0,39586.0,0.09828]
[1610142578315,0.07774,39622.0,39586.0,0.09828]
[1610142578516,0.00030886,39621.0,39583.0,3.6479]
[1610142579119,0.00738106,39617.0,39584.0,0.13632608]
[1610142579417,0.0076808,39616.0,39584.0,0.13632608]
[1610142579819,0.00030891,39615.0,39584.0,0.13632608]
[1610142580018,0.00030891,39615.0,39597.0,3.7636]
[1610142580219,0.00030888,39620.0,39597.0,3.88689]
[1610142580621,0.00030886,39614.0,39597.0,3.88689]
[1610142580820,0.08285,39614.0,39597.0,0.12329]
[1610142581019,0.00030886,39613.0,39597.0,0.12329]
[1610142581223,0.13632608,39598.0,39597.0,0.12329]
[1610142581419,0.24519608,39598.0,39578.0,0.13632608]
[1610142581620,0.24550498,39598.0,39575.0,0.07713]
[1610142581820,0.24519608,39598.0,39563.0,3.5882]
[1610142582221,0.00030892,39597.0,39563.0,3.5882]
[1610142583322,0.00030892,39597.0,39587.0,0.13632608]
[1610142584123,0.0003089,39605.0,39587.0,0.13478242]
[1610142584323,0.0003089,39596.0,39587.0,0.13478242]
[1610142584627,0.1212189,39596.0,39587.0,0.13478242]
[1610142584923,0.12091,39596.0,39566.0,4.1573]
[1610142585124,0.13632608,39576.0,39575.0,0.13632608]
[1610142585423,0.00030893,39595.0,39575.0,0.13632608]
[1610142585623,0.12091,39596.0,39575.0,0.13632608]
[1610142585827,0.00030891,39594.0,39575.0,0.13632608]
[1610142586024,0.00030891,39595.0,39575.0,0.13632608]
[1610142586525,0.00030891,39594.0,39575.0,0.13632608]
[1610142586925,0.00030891,39605.0,39575.0,0.13632608]
[1610142587224,0.13632608,39582.0,39581.0,0.13632608]
[1610142588025,0.12185,39606.0,39581.0,0.13632608]
[1610142588225,0.2933,39613.0,39581.0,0.10699]
[1610142588426,0.02292504,39605.0,39581.0,0.10699]
[1610142588626,0.13752614,39605.0,39581.0,0.10699]
[1610142588825,0.11491,39605.0,39581.0,0.10699]
[1610142589030,0.0003089,39604.0,39581.0,0.10699]
[1610142589226,0.13632608,39582.0,39581.0,0.10699]
[1610142590630,0.13632608,39582.0,39554.0,3.8334]
[1610142591231,0.08614,39589.0,39566.0,0.13632608]
[1610142591429,0.0229267,39581.0,39566.0,0.13632608]
[1610142591632,0.11897,39581.0,39566.0,0.13632608]
[1610142591829,0.02292864,39580.0,39566.0,0.13632608]
[1610142593230,0.13632608,39567.0,39566.0,0.13632608]
[1610142593831,0.13632608,39567.0,39551.0,0.2727]
[1610142593832,0.13632608,39567.0,39453.0,2.36467089]
[1610142594032,0.13632608,39567.0,39481.0,0.274]
[1610142594234,0.13632608,39567.0,39531.0,2.9985]
[1610142594732,0.4447,39566.0,39531.0,2.9985]
[1610142594934,0.13632608,39567.0,39507.0,0.2711]
[1610142595134,3.1313,39564.0,39507.0,0.2711]
[1610142595336,0.02293643,39566.0,39529.0,0.13632608]
[1610142595536,0.17751616,39563.0,39529.0,0.13632608]
[1610142595835,0.02294019,39565.0,39529.0,0.13632608]
[1610142596041,0.02294022,39562.0,39529.0,0.13632608]
[1610142596234,0.02294022,39562.0,39513.0,3.9717]
[1610142596535,0.02263243,39561.0,39513.0,3.9717]
[1610142596737,0.02294163,39561.0,39513.0,3.9717]
[1610142597036,0.17753003,39566.0,39513.0,3.9717]
[1610142597236,0.02294162,39560.0,39524.0,0.13632608]
[1610142597436,0.12606,39560.0,39524.0,0.13632608]
[1610142597637,0.02294175,39559.0,39525.0,4.2394]
[1610142599254,0.13632608,39543.0,39542.0,0.13632608]
[1610142599449,0.12441,39551.0,39542.0,0.13632608]
[1610142600552,0.12606,39560.0,39542.0,0.13632608]
[1610142601240,0.26238608,39560.0,39558.0,0.13632608]
[1610142601954,0.26238608,39560.0,39541.0,0.08322]
[1610142602352,0.00030913,39559.0,39541.0,0.08322]
[1610142602650,0.02292664,39559.0,39532.0,0.12521]
[1610142602941,0.02292664,39559.0,39525.0,4.2394]
[1610142603241,0.02292664,39559.0,39527.0,0.13632608]
[1610142604442,0.02292664,39559.0,39515.0,0.12036]
[1610142605141,0.08478066,39559.0,39508.0,3.3989]
[1610142605344,0.13632608,39509.0,39508.0,3.3989]
[1610142605543,0.08287,39519.0,39501.0,0.12397]
[1610142605742,0.08287,39519.0,39493.0,0.08605]
[1610142607244,0.08287,39519.0,39494.0,0.13632608]
[1610142607642,0.08287,39519.0,39493.0,0.08605]
[1610142609247,0.13632608,39494.0,39493.0,0.08605]
[1610142610250,0.13632608,39494.0,39467.0,3.0798]
[1610142610651,0.10071,39501.0,39467.0,3.0798]
[1610142610849,0.10071,39501.0,39467.0,3.17294]
[1610142611355,0.10071,39501.0,39468.0,0.13632608]
[1610142613253,0.10071,39501.0,39489.0,0.13632608]
[1610142615356,0.10915,39510.0,39497.0,0.13632608]
[1610142615555,0.08287,39519.0,39497.0,0.13632608]
[1610142615855,0.00740659,39526.0,39497.0,0.13632608]
[1610142616255,0.00740984,39527.0,39497.0,0.13632608]
[1610142616658,0.00740533,39526.0,39497.0,0.13632608]
[1610142616858,0.12151533,39526.0,39477.0,4.2387]
[1610142617262,0.13632608,39478.0,39477.0,4.2387]
[1610142617459,0.13632608,39478.0,39476.0,0.12158]
[1610142618061,0.13632608,39478.0,39475.0,0.13632608]
[1610142618462,0.13632608,39478.0,39467.0,0.09314]
[1610142618761,0.13632608,39478.0,39459.0,3.777]
[1610142619362,0.1157,39485.0,39472.0,0.13632608]
[1610142619765,0.08605,39493.0,39472.0,0.13632608]
[1610142619963,0.2914,39502.0,39472.0,0.13632608]
[1610142620564,0.2914,39502.0,39469.0,3.3488]
[1610142620862,0.40785,39502.0,39469.0,3.3488]
[1610142621264,0.13632608,39478.0,39477.0,0.13632608]
[1610142623570,0.12099,39491.0,39477.0,0.13632608]
[1610142623971,0.12099,39491.0,39477.0,0.22682608]
[1610142624170,0.11645,39502.0,39477.0,0.22682608]
[1610142625273,0.13632608,39484.0,39481.0,0.13632608]
[1610142628077,0.11645,39502.0,39481.0,0.13632608]
[1610142628781,0.06190528,39517.0,39481.0,0.13632608]
[1610142628979,0.2856,39518.0,39485.0,0.4996]
[1610142629184,0.2856,39518.0,39485.0,0.11061]
[1610142629380,0.02294798,39516.0,39492.0,0.13632608]
[1610142629580,0.0229477,39517.0,39492.0,0.13632608]
[1610142629780,0.02294763,39515.0,39492.0,0.13632608]
[1610142630086,0.37524,39518.0,39492.0,0.13632608]
[1610142630087,0.02294701,39517.0,39492.0,0.13632608]
[1610142630481,0.37524,39518.0,39492.0,0.13632608]
[1610142630680,0.02294662,39516.0,39492.0,0.13632608]
[1610142630880,0.02294672,39517.0,39492.0,0.13632608]
[1610142631384,0.37524,39518.0,39517.0,0.13632608]
[1610142631580,0.13632608,39522.0,39517.0,0.13632608]
[1610142631881,0.30295559,39541.0,39517.0,0.22945608]
[1610142632181,0.02293982,39540.0,39517.0,0.22945608]
[1610142632782,0.1227,39549.0,39517.0,0.22945608]
[1610142632783,0.02293748,39547.0,39517.0,0.22945608]
[1610142632982,0.18456597,39549.0,39517.0,0.22945608]
[1610142632983,0.1227,39549.0,39517.0,0.22945608]
[1610142633284,0.02293524,39546.0,39541.0,0.13632608]
[1610142633483,0.02293566,39548.0,39541.0,0.13632608]
[1610142633684,0.02293566,39548.0,39541.0,0.25424608]
[1610142633883,0.06185469,39557.0,39541.0,0.25424608]
[1610142634185,0.18791376,39560.0,39541.0,0.11792]
[1610142634382,0.02297047,39556.0,39541.0,0.11792]
[1610142634584,0.00733916,39558.0,39541.0,0.11792]
[1610142634783,0.02266194,39555.0,39532.0,3.4366]
[1610142634983,0.02297121,39555.0,39538.0,0.07771]
[1610142635188,0.02297075,39557.0,39538.0,0.07771]
[1610142635384,0.02297039,39554.0,39544.0,0.13632608]
[1610142635584,0.00030927,39554.0,39544.0,0.13632608]
[1610142635785,0.02296929,39556.0,39544.0,0.13632608]
[1610142635985,0.00030925,39553.0,39543.0,0.11048]
[1610142636184,0.00030923,39555.0,39543.0,0.11048]
[1610142636389,0.12606,39560.0,39543.0,0.11048]
[1610142636585,0.00734774,39568.0,39543.0,0.11048]
[1610142636784,0.00030921,39559.0,39543.0,0.11048]
[1610142637085,0.00030919,39567.0,39543.0,0.11048]
[1610142637285,0.10304361,39570.0,39543.0,0.11048]
[1610142637286,0.09569,39570.0,39548.0,0.13632608]
[1610142637487,0.00030919,39566.0,39548.0,0.13632608]
[1610142637687,0.00030919,39569.0,39548.0,0.13632608]
[1610142637986,0.00030919,39569.0,39545.0,3.864]
[1610142637987,0.00030919,39565.0,39545.0,3.864]
[1610142638185,0.00030919,39565.0,39543.0,0.11048]
[1610142638386,0.09569,39570.0,39530.0,0.08319]
[1610142638387,0.00030919,39568.0,39530.0,0.08319]
[1610142638586,0.00030921,39564.0,39530.0,0.08319]
[1610142638790,0.00735236,39564.0,39530.0,0.08319]
[1610142639189,0.00734815,39562.0,39530.0,0.08319]
[1610142639490,0.12795815,39562.0,39536.0,0.13632608]
[1610142639692,0.00030921,39561.0,39536.0,0.13632608]
[1610142640194,0.00030921,39561.0,39539.0,3.8902]
[1610142640390,0.00030921,39561.0,39539.0,3.99962]
[1610142640694,0.00030918,39563.0,39539.0,3.99962]
[1610142640893,0.00736404,39570.0,39539.0,3.99962]
[1610142641292,0.00735798,39571.0,39539.0,3.99962]
[1610142641593,0.13632608,39558.0,39547.0,0.13632608]
[1610142641993,0.13632608,39558.0,39539.0,3.99962]
[1610142642194,0.00735751,39572.0,39539.0,3.99962]
[1610142642195,0.00735185,39575.0,39539.0,3.99962]
[1610142642494,0.09951217,39576.0,39539.0,3.99962]
[1610142642898,0.09216,39576.0,39539.0,3.99962]
[1610142643395,0.13632608,39562.0,39552.0,0.13632608]
[1610142643996,0.13632608,39562.0,39552.0,0.63392608]
[1610142644197,0.13632608,39562.0,39552.0,0.13632608]
[1610142644400,0.13632608,39562.0,39556.0,3.223]
[1610142644601,0.13632608,39562.0,39556.0,3.31393]
[1610142644800,0.00736242,39583.0,39556.0,3.31393]
[1610142645001,0.00737006,39588.0,39556.0,3.31393]
[1610142645403,0.00737006,39588.0,39582.0,0.13632608]
[1610142645700,0.63599277,39594.0,39582.0,0.13632608]
[1610142645701,0.00737692,39592.0,39582.0,0.23157608]
[1610142645901,0.00738739,39597.0,39582.0,0.23157608]
[1610142646100,0.00738739,39597.0,39582.0,0.65177608]
[1610142646300,0.0073965,39601.0,39582.0,0.65177608]
[1610142646599,0.0073965,39601.0,39588.0,3.6575]
[1610142646801,0.00739852,39602.0,39588.0,3.6575]
[1610142647399,1.00871823,39608.0,39588.0,3.6575]
[1610142647400,0.00740756,39604.0,39601.0,0.13632608]
[1610142647700,0.00742063,39609.0,39601.0,0.13632608]
[1610142647899,0.00742063,39609.0,39601.0,0.13478289]
[1610142648601,0.00742861,39614.0,39601.0,0.13478289]
[1610142649000,0.4371226,39616.0,39601.0,0.13478289]
[1610142649001,0.00743006,39615.0,39601.0,0.13478289]
[1610142649303,0.4371226,39616.0,39601.0,0.13478289]
[1610142649503,0.13632608,39603.0,39601.0,0.13478289]
[1610142650707,0.13632608,39603.0,39599.0,0.11519]
[1610142652609,0.00741369,39619.0,39599.0,0.11519]
[1610142652908,0.00741369,39619.0,39599.0,0.60809]
[1610142653212,0.00741474,39620.0,39599.0,0.60809]
[1610142653408,0.00741474,39620.0,39617.0,0.13632608]
[1610142653610,0.00741893,39625.0,39617.0,0.13632608]
[1610142654011,0.00742193,39626.0,39617.0,0.13632608]
[1610142654712,0.00743911,39629.0,39617.0,0.13632608]
[1610142655113,0.00743911,39629.0,39612.0,0.12613]
[1610142655411,0.13632608,39615.0,39612.0,0.12613]
[1610142657317,0.13632608,39615.0,39614.0,3.8399]
[1610142657513,0.13632608,39615.0,39614.0,3.97622608]
[1610142657814,0.13632608,39615.0,39614.0,0.13632608]
[1610142658316,0.10419,39630.0,39614.0,0.13632608]
[1610142658916,0.00030867,39629.0,39614.0,0.13632608]
[1610142659416,0.00030867,39629.0,39618.0,0.13632608]
[1610142659917,0.00030867,39629.0,39618.0,0.13478341]
[1610142660817,0.00030867,39629.0,39612.0,0.12613]
[1610142661020,0.00030867,39629.0,39599.0,0.11519]
[1610142661021,0.50770867,39629.0,39599.0,0.11519]
[1610142661223,3.1791,39620.0,39590.0,0.09162]
[1610142661422,0.13632608,39591.0,39590.0,0.22794608]
[1610142661722,0.13632608,39591.0,39590.0,0.13632608]
[1610142661919,0.13632608,39591.0,39590.0,3.95472608]
[1610142662320,0.12578,39610.0,39590.0,3.95472608]
[1610142662521,0.12578,39610.0,39590.0,4.05422608]
[1610142662922,0.00030873,39609.0,39590.0,4.05422608]
[1610142663423,0.13632608,39603.0,39600.0,0.13632608]
[1610142664022,0.13632608,39603.0,39600.0,0.68132608]
[1610142665527,0.13632608,39603.0,39600.0,0.13632608]
[1610142665727,0.13632608,39603.0,39590.0,0.0995]
[1610142666130,0.13632608,39603.0,39576.0,3.9074]
[1610142666527,0.00030877,39602.0,39576.0,3.9074]
[1610142666726,0.09911586,39602.0,39576.0,3.9074]
[1610142667329,0.02170782,39601.0,39576.0,3.9074]
[1610142667528,0.02170782,39601.0,39581.0,0.13632608]
[1610142668129,0.02170782,39601.0,39576.0,3.9074]
[1610142668130,0.5534,39600.0,39576.0,3.9074]
[1610142668331,0.02170782,39601.0,39570.0,0.08634]
[1610142668532,3.4297,39597.0,39561.0,0.11391]
[1610142668933,0.02170947,39596.0,39561.0,0.11391]
[1610142669457,3.3379,39579.0,39561.0,0.11391]
[1610142669634,0.13632608,39562.0,39545.0,0.13632608]
[1610142669835,0.13632608,39562.0,39515.0,0.2862]
[1610142670035,0.13632608,39562.0,39526.0,3.35381]
[1610142671539,0.13632608,39562.0,39556.0,0.13632608]
[1610142671741,0.13632608,39562.0,39548.0,0.10706]
[1610142673239,0.13632608,39562.0,39538.0,3.912]
[1610142673540,0.13632608,39557.0,39544.0,0.13632608]
[1610142675640,0.13632608,39553.0,39544.0,0.13632608]
[1610142675843,0.0942,39571.0,39544.0,0.13632608]
[1610142676043,0.00717041,39592.0,39544.0,0.25300608]
[1610142676240,0.2957,39590.0,39550.0,2.9739]
[1610142676846,0.10909464,39589.0,39550.0,2.9739]
[1610142677143,0.10909464,39589.0,39559.0,4.1512]
[1610142677344,0.08738,39589.0,39559.0,0.09186]
[1610142677543,0.08738,39589.0,39582.0,0.13632608]
[1610142680446,0.08738,39589.0,39583.0,0.5605]
[1610142680647,0.07741,39602.0,39582.0,0.13632608]
[1610142680846,0.0072114,39611.0,39587.0,3.1262]
[1610142681046,0.0072114,39611.0,39587.0,3.24697]
[1610142681248,0.2843,39612.0,39587.0,3.24697]
[1610142681249,0.00030878,39610.0,39587.0,3.24697]
[1610142681651,0.00030878,39610.0,39606.0,0.13632608]
[1610142681848,0.2843,39612.0,39606.0,0.13632608]
[1610142681849,0.00030874,39611.0,39606.0,0.13632608]
[1610142682148,0.2843,39612.0,39606.0,0.13632608]
[1610142683349,0.2843,39612.0,39597.0,0.09062]
[1610142683550,0.13632608,39598.0,39597.0,4.04982]
[1610142685652,0.13632608,39598.0,39597.0,4.18614608]
[1610142686355,0.13632608,39598.0,39597.0,3.7160379]
[1610142687657,0.13632608,39598.0,39597.0,3.85236398]
[1610142688156,0.13632608,39598.0,39587.0,0.12077]
[1610142688357,0.13632608,39598.0,39581.0,3.9054]
[1610142688957,0.24974608,39598.0,39577.0,0.11224]
[1610142689260,0.24974608,39598.0,39566.0,2.8517]
[1610142689757,0.11342,39598.0,39567.0,0.13632608]
[1610142690258,0.11342,39598.0,39566.0,2.8517]
[1610142690463,0.02147159,39596.0,39566.0,2.8517]
[1610142690860,0.00718611,39592.0,39566.0,2.8517]
[1610142691260,0.00715698,39591.0,39518.0,0.2765]
[1610142691459,3.7595,39589.0,39552.0,4.12]
[1610142691765,0.13632608,39553.0,39552.0,4.12]
[1610142691964,0.10003,39568.0,39553.0,0.00027445]
[1610142693366,0.00710041,39585.0,39553.0,0.00027445]
[1610142693566,0.00709417,39588.0,39553.0,0.00027445]
[1610142693765,0.13632608,39571.0,39568.0,0.13632608]
[1610142693966,0.37336,39589.0,39568.0,0.13632608]
[1610142694164,0.37336,39589.0,39568.0,0.24181608]
[1610142694385,0.02117173,39594.0,39568.0,0.24181608]
[1610142694865,0.02119204,39597.0,39569.0,0.00027438]
[1610142695064,0.02119204,39597.0,39577.0,3.5667]
[1610142695369,0.00710218,39599.0,39577.0,3.68407]
[1610142695865,0.0071073,39601.0,39589.0,0.5401]
[1610142696268,0.00710752,39602.0,39589.0,0.5401]
[1610142696769,0.00711103,39603.0,39590.0,0.00027432]
[1610142696969,0.00711312,39607.0,39590.0,0.00027432]
[1610142697467,0.29509119,39610.0,39590.0,0.00027432]
[1610142697668,0.29509119,39610.0,39604.0,0.13632608]
[1610142697867,0.2739,39610.0,39590.0,0.00027432]
[1610142698067,0.2739,39610.0,39598.0,3.5171]
[1610142698568,0.2739,39610.0,39598.0,0.11427]
[1610142699069,0.2809743,39610.0,39598.0,0.11427]
[1610142699570,0.02107669,39607.0,39598.0,0.11427]
[1610142699768,0.13632608,39599.0,39598.0,0.11427]
[1610142700769,0.13632608,39599.0,39591.0,3.4217]
[1610142700770,0.14337565,39599.0,39591.0,3.4217]
[1610142701569,0.15728829,39599.0,39591.0,3.4217]
[1610142701770,0.13632608,39592.0,39591.0,3.4217]
[1610142703671,0.13632608,39592.0,39591.0,3.42197561]
[1610142707776,0.13632608,39592.0,39591.0,3.55830169]
[1610142708579,0.32682492,39592.0,39591.0,3.55830169]
[1610142709878,0.19049884,39592.0,39591.0,3.55830169]
[1610142711882,0.19049884,39592.0,39591.0,3.58821047]
[1610142716589,0.19049884,39592.0,39591.0,3.55830169]
[1610142717694,0.19049884,39592.0,39591.0,3.42197561]
[1610142717893,0.19049884,39592.0,39591.0,3.45187116]
[1610142718092,0.19049884,39592.0,39591.0,3.58819724]
[1610142720797,0.19049884,39592.0,39591.0,5.08819724]
[1610142720995,0.19049884,39592.0,39591.0,5.14475323]
[1610142721196,0.00703232,39642.0,39591.0,5.14475323]
[1610142721695,0.00702439,39646.0,39591.0,5.14475323]
[1610142721893,0.00702439,39646.0,39592.0,0.08669124]
[1610142722094,0.00702671,39649.0,39645.0,0.13632608]